bitfinex/quotes_ETHUSD_20250220
["timestamp","ask_amount","ask_price","bid_price","bid_amount"]
[1740042467355,0.0075,2735.1,2734.9,3.65637]
[1740042470061,0.0075,2735.1,2734.8,0.79251401]
[1740042471071,0.0075,2735.1,2734.8,4.44907401]
[1740042472370,0.0075,2735.1,2734.8,4.44906401]
[1740042473165,0.0075,2735.1,2734.8,0.79251401]
[1740042473346,0.0075,2735.1,2734.8,4.44904401]
[1740042473730,0.0075,2735.1,2734.8,0.79251401]
[1740042473932,0.0075,2735.1,2734.8,0.26]
[1740042474474,0.0075,2735.1,2734.8,3.91656]
[1740042474671,0.0075,2735.1,2734.8,3.91657]
[1740042476067,0.0075,2735.1,2734.8,3.65657]
[1740042476370,0.0075,2735.1,2734.7,4.46702]
[1740042476371,0.0075,2735.1,2734.9,0.26]
[1740042476774,0.792,2734.6,2734.3,11.87317]
[1740042476932,0.0075,2734.5,2734.4,0.26]
[1740042478368,0.0075,2734.5,2734.3,3.65717]
[1740042478667,0.0075,2734.5,2734.4,0.26]
[1740042478844,0.0075,2734.5,2734.3,3.65717]
[1740042479048,0.0075,2734.5,2734.4,0.26]
[1740042480058,0.0075,2734.5,2734.1,10.31484]
[1740042480383,0.0075,2734.5,2734.4,0.26]
[1740042482793,0.0075,2734.5,2734.4,3.9171]
[1740042482994,0.0075,2734.5,2734.4,0.26]
[1740042484176,0.0075,2734.3,2734.0,0.7623]
[1740042484348,0.0075,2734.3,2734.1,0.26]
[1740042484782,0.0075,2734.3,2734.0,4.41986]
[1740042484954,5.24530834,2734.3,2734.1,0.26]
[1740042485150,8.90261834,2734.3,2734.1,0.26]
[1740042485365,3.65737,2734.2,2734.1,0.26]
[1740042486058,12.55996834,2734.3,2734.1,0.26]
[1740042486279,8.90261834,2734.3,2734.1,0.26]
[1740042486482,4.43447,2734.2,2734.1,0.26]
[1740042486980,9.67227834,2734.2,2734.1,0.26]
[1740042487386,0.0075,2734.1,2733.8,8.216]
[1740042487550,0.0075,2734.1,2734.0,0.26]
[1740042489513,0.0075,2734.1,2734.0,4.69754]
[1740042490297,5.23780834,2734.2,2734.1,3.65751]
[1740042490795,6.04260834,2735.0,2734.5,4.46515]
[1740042490998,0.0075,2734.9,2734.5,4.46515]
[1740042491959,0.0075,2734.9,2734.6,3.65675]
[1740042492958,0.0075,2734.9,2734.5,0.8082]
[1740042493160,0.0075,2734.9,2734.5,4.46515]
[1740042495197,0.0075,2734.9,2734.6,3.65684]
[1740042495498,0.0075,2734.9,2734.6,4.469046]
[1740042495865,0.0075,2734.9,2734.7,3.6567]
[1740042496067,0.0075,2734.9,2734.8,3.91657]
[1740042496409,0.0075,2734.9,2734.8,0.26]
[1740042496709,0.0075,2734.9,2734.8,0.12692876]
[1740042500684,0.0075,2734.9,2734.8,3.78349876]
[1740042502407,0.0075,2734.9,2734.8,0.12692876]
[1740042502702,5.23780834,2735.0,2734.8,3.78349876]
[1740042502909,0.0992,2735.1,2734.9,6.41449439]
[1740042503097,0.0992,2735.1,2735.0,3.6563]
[1740042504912,0.0992,2735.1,2735.0,4.4566]
[1740042508881,0.0992,2735.1,2735.0,4.73704823]
[1740042514037,0.0992,2735.1,2735.0,5.28704823]
[1740042514300,0.0992,2735.1,2735.0,6.5718771]
[1740042521195,0.0992,2735.1,2735.0,14.7868771]
[1740042522302,0.0992,2735.1,2735.0,14.2368771]
[1740042522506,0.0992,2735.1,2735.0,8.49544823]
[1740042522649,0.8763,2735.1,2735.0,8.474]
[1740042523686,0.8838,2735.1,2735.0,8.474]
[1740042523892,0.8838,2735.1,2735.0,8.215]
[1740042524094,4.53997,2735.1,2735.0,8.474]
[1740042524306,4.993955,2735.1,2735.0,8.474]
[1740042524593,4.993955,2735.1,2735.0,8.215]
[1740042524794,4.993955,2735.1,2735.0,8.474]
[1740042524795,4.978855,2735.1,2735.0,8.474]
[1740042528999,10.21666334,2735.1,2735.0,8.474]
[1740042531300,10.21666334,2735.1,2735.0,8.215]
[1740042534803,0.8351,2734.7,2734.5,0.26]
[1740042535809,0.8276,2734.4,2734.0,6.41561439]
[1740042536005,0.8276,2734.4,2734.1,0.26]
[1740042536482,0.8276,2734.4,2734.1,3.91748]
[1740042536902,0.8276,2734.4,2734.2,0.26]
[1740042538711,0.0075,2734.3,2734.2,3.91737]
[1740042539227,0.0075,2734.4,2734.3,3.65722]
[1740042539568,0.0075,2734.4,2734.3,4.42362]
[1740042540372,5.23780834,2734.5,2734.4,3.6571]
[1740042540924,0.0075,2734.8,2734.4,3.6571]
[1740042541984,0.0075,2734.8,2734.5,3.65693]
[1740042542320,0.0075,2734.8,2734.5,7.31382]
[1740042542524,0.0075,2734.8,2734.5,3.65689]
[1740042543225,0.0075,2734.8,2734.5,7.31379]
[1740042543519,0.0075,2734.8,2734.6,1.492679]
[1740042544433,0.0075,2734.8,2734.6,5.149519]
[1740042544741,0.0075,2734.8,2734.3,6.41522439]
[1740042544883,0.8294,2734.7,2734.4,3.65702]
[1740042545291,0.8294,2734.7,2734.5,3.65693]
[1740042546231,0.0075,2734.8,2734.5,7.31386]
[1740042546817,0.0075,2734.8,2734.5,3.65693]
[1740042547018,0.0075,2734.8,2734.6,4.022523]
[1740042548145,0.0075,2734.8,2734.7,3.6567]
[1740042548614,0.0075,2734.8,2734.6,7.56216739]
[1740042548993,0.0075,2734.8,2734.7,3.6567]
[1740042550928,5.23780834,2734.9,2734.8,3.65657]
[1740042551543,0.0992,2735.1,2734.8,3.65657]
[1740042551544,0.0992,2735.1,2734.9,3.65635]
[1740042551835,0.0992,2735.1,2735.0,3.9163]
[1740042552226,0.0992,2735.1,2735.0,4.744]
[1740042554935,0.0992,2735.1,2734.8,1.12186174]
[1740042554936,0.0075,2735.0,2734.7,3.65666]
[1740042555233,0.0075,2735.0,2734.8,0.26]
[1740042555443,0.0075,2735.0,2734.9,3.65644]
[1740042557409,0.0992,2735.1,2735.0,3.6563]
[1740042557609,0.0992,2735.1,2735.0,4.4484]
[1740042571242,0.0992,2735.1,2735.0,4.9984]
[1740042572757,0.0992,2735.1,2735.0,7.9984]
[1740042580323,0.0992,2735.1,2735.0,16.2134]
[1740042580524,0.0992,2735.1,2735.0,18.57791914]
[1740042582729,0.0992,2735.1,2735.0,21.24977168]
[1740042604824,0.8069,2735.8,2735.7,3.65537]
[1740042605039,0.753,2736.4,2736.3,3.65457]
[1740042605175,0.753,2736.4,2736.3,4.99049627]
[1740042608869,0.8174,2737.1,2736.6,3.65405]
[1740042609015,0.0075,2737.0,2736.8,3.65389]
[1740042609373,0.0075,2737.0,2736.8,4.98981627]
[1740042609654,0.0075,2737.0,2736.8,1.33592627]
[1740042610849,0.0075,2737.0,2736.7,0.259]
[1740042611053,0.793,2736.9,2736.7,0.259]
[1740042611253,0.0075,2736.6,2736.2,1.33592627]
[1740042611455,0.793,2736.5,2736.3,0.259]
[1740042612111,4.44737,2736.5,2736.3,0.259]
[1740042612315,0.793,2736.4,2736.3,0.259]
[1740042613053,0.0075,2736.1,2736.0,1.33592627]
[1740042613254,0.0075,2736.1,2736.0,0.259]
[1740042613754,0.0075,2736.1,2736.0,1.59492627]
[1740042614320,0.0075,2736.1,2736.0,5.24989627]
[1740042614859,0.0075,2736.1,2736.0,0.259]
[1740042615256,0.0075,2736.1,2735.8,6.40954445]
[1740042615465,0.8144,2736.1,2736.0,0.259]
[1740042615887,1.261305,2736.1,2736.0,0.259]
[1740042616188,4.109245,2736.1,2735.5,14.86859]
[1740042616502,0.8212,2735.8,2735.6,0.259]
[1740042619484,0.0075,2735.7,2735.3,6.41024445]
[1740042619783,0.0075,2735.7,2735.4,0.259]
[1740042620159,0.0075,2735.7,2735.4,3.91472]
[1740042620670,0.0075,2735.7,2735.5,3.65553]
[1740042621582,0.8212,2735.8,2735.6,3.65546]
[1740042625115,0.7654,2735.9,2735.6,3.65543]
[1740042625458,0.7654,2735.9,2735.7,3.65529]
[1740042629425,5.23780834,2736.0,2735.8,3.65523]
[1740042629709,5.23780834,2736.0,2735.9,4.4481]
[1740042629877,0.0075,2736.3,2735.9,4.4481]
[1740042630075,0.7583,2736.4,2735.9,4.4481]
[1740042630308,0.7583,2736.4,2736.0,3.65488]
[1740042630739,5.23780834,2736.5,2736.3,3.65457]
[1740042630892,0.7918,2736.7,2736.4,0.259]
[1740042631290,0.7918,2736.7,2736.5,3.65427]
[1740042631469,0.7918,2737.0,2736.5,3.65418]
[1740042631665,0.0075,2736.9,2736.5,3.65418]
[1740042632162,0.0075,2736.9,2736.4,0.259]
[1740042632163,4.17076377,2736.9,2736.4,0.259]
[1740042632362,0.0075,2736.7,2736.4,0.259]
[1740042632793,0.0075,2736.7,2736.5,0.259]
[1740042633191,0.8,2736.8,2736.5,3.91329]
[1740042634308,0.8,2736.8,2736.5,0.259]
[1740042634810,0.8,2736.8,2736.5,3.91329]
[1740042635294,0.8,2736.8,2736.5,3.91322]
[1740042635613,0.8,2736.8,2736.5,7.56745]
[1740042635788,0.8,2736.8,2736.5,3.91322]
[1740042636276,0.8,2736.8,2736.6,3.65416]
[1740042636611,5.24530834,2737.0,2736.5,0.259]
[1740042636906,5.24530834,2737.0,2736.6,3.65416]
[1740042637111,5.84983917,2737.0,2736.6,3.65416]
[1740042637408,5.84983917,2737.0,2736.5,0.259]
[1740042637566,0.8,2736.9,2736.5,0.259]
[1740042638118,4.45385,2736.9,2736.5,0.259]
[1740042639318,3.65392,2736.8,2736.5,0.259]
[1740042640180,3.65392,2736.8,2736.2,7.18555445]
[1740042640387,3.65405,2736.7,2736.3,0.259]
[1740042640697,0.7522,2736.6,2736.4,0.259]
[1740042640890,4.40644,2736.6,2736.4,0.259]
[1740042641212,5.35206339,2736.6,2736.4,0.259]
[1740042641804,5.35206339,2736.6,2736.1,3.0]
[1740042642044,5.35206339,2736.6,2736.5,0.259]
[1740042642208,5.35206339,2736.6,2736.5,0.209]
[1740042643908,4.42042,2736.2,2736.0,8.213]
[1740042644123,0.0075,2736.3,2736.1,0.259]
[1740042644420,4.42017,2736.4,2736.1,0.259]
[1740042644600,4.42017,2736.4,2736.0,8.213]
[1740042644805,4.42017,2736.4,2736.1,0.259]
[1740042645726,0.7657,2736.4,2736.1,0.259]
[1740042649902,0.0075,2736.4,2736.1,0.259]
[1740042650108,0.0075,2736.4,2736.1,3.91383]
[1740042650719,0.0075,2736.4,2736.1,0.259]
[1740042651806,6.96493173,2736.6,2736.1,3.91372]
[1740042652002,5.23780834,2736.6,2736.3,3.6545]
[1740042652207,5.23780834,2736.6,2736.4,0.7745]
[1740042652407,5.23780834,2736.6,2736.3,3.6545]
[1740042653753,0.0075,2736.7,2736.3,3.6545]
[1740042653909,0.0075,2736.7,2736.3,3.65446]
[1740042654115,0.0075,2736.7,2736.4,3.65439]
[1740042655246,5.99950834,2736.8,2736.4,3.65439]
[1740042655540,4.4391,2737.1,2736.6,3.65413]
[1740042655743,0.0075,2737.0,2736.6,3.65413]
[1740042656051,0.7578,2736.7,2736.2,4.4645]
[1740042657428,0.7578,2736.7,2736.4,3.65436]
[1740042658117,0.0075,2736.8,2736.4,3.65431]
[1740042658321,0.0075,2736.9,2736.6,0.7595]
[1740042658520,0.58529608,2736.9,2736.6,0.7595]
[1740042658721,0.57779608,2736.9,2736.6,0.7595]
[1740042658971,4.43742,2737.1,2736.6,4.41366]
[1740042659110,0.0075,2737.0,2736.6,3.65416]
[1740042659454,3.6612,2737.0,2736.4,4.42861]
[1740042659850,3.65377,2736.9,2736.4,4.42861]
[1740042660013,3.65392,2736.8,2736.4,0.7743]
[1740042660947,3.6612,2737.0,2736.4,0.7743]
[1740042661155,3.6612,2737.0,2736.5,3.65423]
[1740042661737,0.0075,2737.0,2736.6,3.65404]
[1740042663355,0.0075,2737.0,2736.6,7.30814]
[1740042663559,0.0075,2737.0,2736.6,7.30813]
[1740042663765,0.7838,2737.1,2736.6,3.65404]
[1740042663962,0.7838,2737.1,2736.7,3.65402]
[1740042664110,0.7838,2737.1,2736.6,3.65404]
[1740042664316,5.23780834,2737.3,2736.9,3.65364]
[1740042664518,0.8284,2737.4,2737.0,0.259]
[1740042664713,0.0075,2737.3,2737.0,3.91263]
[1740042665620,0.0075,2737.3,2737.0,0.259]
[1740042666645,3.65344,2737.2,2737.0,0.259]
[1740042666950,0.366094,2737.1,2737.0,0.259]
[1740042668552,4.019594,2737.1,2737.0,0.259]
[1740042668917,0.366094,2737.1,2737.0,0.259]
[1740042672375,7.31415,2737.3,2737.0,0.259]
[1740042672663,3.6608,2737.3,2737.0,0.259]
[1740042672876,7.31413,2737.3,2737.0,0.259]
[1740042674369,3.65339,2737.2,2737.0,0.259]
[1740042676028,3.6535,2737.1,2737.0,0.259]
[1740042676338,0.0075,2737.3,2737.0,0.259]
[1740042676538,4.10228,2737.2,2737.0,0.259]
[1740042676740,3.6535,2737.1,2737.0,0.259]
[1740042677171,4.483,2737.1,2737.0,0.259]
[1740042677480,0.8295,2737.1,2737.0,0.259]
[1740042679654,4.483,2737.1,2737.0,0.259]
[1740042679959,5.342278,2737.1,2737.0,0.259]
[1740042680133,1.688778,2737.1,2737.0,0.259]
[1740042680549,0.859278,2737.1,2737.0,0.259]
[1740042680766,3.65337,2737.2,2737.0,0.259]
[1740042682149,3.6532,2737.4,2737.0,1.0136]
[1740042682955,5.99380834,2737.5,2737.0,1.0136]
[1740042683276,0.0075,2737.4,2737.0,4.66718]
[1740042684057,3.6606,2737.4,2737.0,4.66718]
[1740042684263,3.6606,2737.4,2737.0,0.7546]
[1740042684440,3.6606,2737.4,2737.1,0.259]
[1740042685482,5.23780834,2737.5,2737.1,0.259]
[1740042686974,5.23780834,2737.5,2737.1,3.91246]
[1740042689350,0.0075,2737.5,2737.1,3.91246]
[1740042690375,0.0075,2737.6,2737.1,3.91246]
[1740042690674,3.66035,2737.6,2737.2,4.98757996]
[1740042691340,3.66035,2737.6,2737.2,1.33431996]
[1740042692075,3.65305,2737.5,2737.1,0.259]
[1740042692953,0.7685,2737.4,2737.1,0.259]
[1740042693172,4.42166,2737.4,2737.2,0.259]
[1740042694374,3.65323,2737.3,2737.2,0.259]
[1740042694725,4.460799,2737.3,2737.2,0.259]
[1740042700529,4.460799,2737.3,2737.0,0.0992]
[1740042700530,0.0075,2737.2,2737.0,0.0992]
[1740042700734,0.0075,2737.2,2737.1,0.259]
[1740042701303,3.66086,2737.2,2737.1,0.259]
[1740042702373,3.661,2737.1,2737.0,0.0992]
[1740042702569,4.57851937,2737.1,2737.0,0.0992]
[1740042704703,9.81632771,2737.1,2737.0,0.0992]
[1740042704871,10.60232771,2737.1,2737.0,0.0992]
[1740042705169,13.35520241,2737.1,2737.0,0.0992]
[1740042705864,10.60232771,2737.1,2737.0,0.0992]
[1740042708913,13.35520241,2737.1,2737.0,0.0992]
[1740042722663,11.9377018,2737.1,2737.0,0.0992]
[1740042735826,11.1517018,2737.1,2737.0,0.0992]
[1740042744534,5.24530834,2737.1,2737.0,0.8512]
[1740042744714,5.23780834,2737.1,2737.0,0.8512]
[1740042745127,8.89130834,2737.1,2737.0,0.8512]
[1740042745764,5.23780834,2737.1,2737.0,0.8512]
[1740042746986,10.23418243,2737.1,2737.0,0.0992]
[1740042747190,11.70572867,2737.1,2737.0,0.0992]
[1740042747935,12.49452867,2737.1,2737.0,0.0992]
[1740042750757,13.91361949,2737.1,2737.0,0.0992]
[1740042752786,17.46361949,2737.1,2737.0,1e-05]
[1740042757190,17.73389247,2737.1,2737.0,1e-05]
[1740042759824,18.29446072,2737.1,2737.0,1e-05]
[1740042764004,18.39446072,2737.1,2737.0,1e-05]
[1740042764328,3.6626,2735.9,2735.8,0.8067]
[1740042764527,8.90040834,2735.9,2735.8,0.8067]
[1740042764961,0.0075,2735.6,2735.5,0.7725]
[1740042766789,3.663,2735.6,2735.5,0.7725]
[1740042767486,8.90080834,2735.6,2735.5,0.7725]
[1740042772332,5.24530834,2735.6,2735.5,0.7725]
[1740042777734,5.23780834,2735.6,2735.5,4.42813]
[1740042777923,5.23780834,2735.6,2735.5,5.41514709]
[1740042778536,0.0075,2736.0,2735.7,0.8088]
[1740042779191,3.66247,2736.0,2735.7,0.8088]
[1740042779833,0.0075,2736.0,2735.7,0.8088]
[1740042780136,3.65514,2735.9,2735.7,0.8088]
[1740042780596,0.0075,2736.0,2735.7,0.8088]
[1740042781308,0.0075,2736.0,2735.8,0.8267]
[1740042781753,5.23780834,2736.1,2735.9,0.8267]
[1740042782451,5.23780834,2736.7,2736.3,0.8051]
[1740042782752,3.65434,2736.5,2736.3,0.8051]
[1740042783827,3.65443,2736.4,2736.3,0.8051]
[1740042788159,3.65497,2736.0,2735.8,0.8089]
[1740042788360,3.66247,2736.0,2735.9,0.259]
[1740042790377,0.0075,2736.0,2735.9,0.259]
[1740042790542,0.0075,2736.0,2735.9,1.0659]
[1740042791082,3.65484,2736.1,2735.9,1.0659]
[1740042791285,5.23780834,2736.4,2736.0,3.65487]
[1740042791489,5.23780834,2736.4,2736.1,0.8056]
[1740042793044,8.89231834,2736.4,2736.1,0.8056]
[1740042793257,5.23780834,2736.4,2736.1,0.8056]
[1740042794781,5.23780834,2736.4,2736.1,4.46042]
[1740042794978,5.23780834,2736.4,2736.2,0.7817]
[1740042795384,8.89224834,2736.4,2735.9,3.65502]
[1740042795544,5.23780834,2736.4,2736.1,0.8238]
[1740042795750,5.23780834,2736.4,2736.2,0.7624]
[1740042798501,8.89231834,2736.4,2736.2,0.7624]
[1740042798866,3.65457,2736.3,2736.0,1.0413]
[1740042799189,0.0075,2736.2,2736.1,0.259]
[1740042800001,0.0075,2736.2,2735.8,4.43741]
[1740042800181,0.0075,2736.2,2735.9,0.259]
[1740042800703,3.65486,2736.1,2735.9,0.259]
[1740042800894,3.66259,2736.0,2735.8,0.7823]
[1740042801090,0.0075,2736.0,2735.9,0.259]
[1740042802004,3.66247,2736.0,2735.9,0.259]
[1740042803105,3.6551,2735.9,2735.8,0.7823]
[1740042803273,3.6551,2735.9,2735.8,1.0413]
[1740042803474,0.0075,2736.0,2735.8,1.0413]
[1740042804389,3.66257,2736.0,2735.8,1.0413]
[1740042804812,4.394313,2736.0,2735.8,0.7823]
[1740042805013,3.6551,2735.9,2735.7,8.213]
[1740042805178,3.6551,2735.9,2735.8,0.259]
[1740042812726,8.90028834,2736.0,2735.8,0.259]
[1740042812897,12.55536834,2736.0,2735.8,0.259]
[1740042813281,3.6551,2735.9,2735.8,0.259]
[1740042813580,12.55536834,2736.0,2735.8,0.259]
[1740042813821,8.90028834,2736.0,2735.8,0.259]
[1740042814023,3.6551,2735.9,2735.8,0.259]
[1740042815896,12.55535834,2736.0,2735.8,0.259]
[1740042816322,12.55536834,2736.0,2735.8,0.259]
[1740042816698,3.6551,2735.9,2735.8,0.259]
[1740042818323,3.6626,2735.9,2735.8,0.259]
[1740042819026,0.0075,2735.9,2735.8,0.259]
[1740042820430,3.6626,2735.9,2735.8,0.259]
[1740042822939,0.0075,2735.9,2735.8,0.259]
[1740042824941,3.6626,2735.9,2735.8,0.259]
[1740042827549,0.0075,2735.9,2735.8,0.259]
[1740042828743,3.6626,2735.9,2735.8,0.259]
[1740042830620,4.91813883,2735.9,2735.8,0.259]
[1740042832440,0.0075,2735.9,2735.8,0.259]
[1740042834157,3.6626,2735.9,2735.8,0.259]
[1740042841056,0.0075,2735.9,2735.8,0.259]
[1740042861294,5.23780834,2736.0,2735.8,0.259]
[1740042868015,5.23780834,2736.0,2735.9,4.4748]
[1740042868315,0.004,2736.4,2736.2,0.8261]
[1740042868500,0.004,2736.4,2736.2,4.48073]
[1740042870317,0.004,2736.4,2736.2,0.8261]
[1740042872251,3.65457,2736.3,2735.9,0.8224]
[1740042872523,0.0115,2736.4,2735.9,0.8224]
[1740042872820,3.65458,2736.3,2736.0,0.259]
[1740042873124,0.0075,2736.2,2736.0,0.259]
[1740042873422,5.24530834,2736.2,2736.0,0.259]
[1740042874530,3.66242,2736.1,2736.0,0.259]
[1740042875409,0.0075,2736.1,2736.0,0.259]
[1740042875725,0.0075,2736.1,2736.0,1.0814]
[1740042885430,5.24180834,2736.2,2736.0,4.73637]
[1740042886003,5.24180834,2736.2,2736.1,3.65483]
[1740042891256,0.004,2736.2,2736.1,3.65483]
[1740042891416,0.004,2736.2,2736.1,4.39345055]
[1740042901370,0.004,2736.2,2736.1,5.72944762]
[1740042901566,0.004,2736.2,2736.1,6.77602738]
[1740042904252,0.004,2736.2,2736.1,5.72944762]
[1740042905174,0.004,2736.2,2736.1,2.07461762]
[1740042905472,0.004,2736.2,2736.1,6.54124762]
[1740042906066,0.004,2736.2,2736.1,1.55042055]
[1740042907273,0.004,2736.2,2736.1,5.20525055]
[1740042909991,0.004,2736.2,2736.1,4.39345055]
[1740042912895,0.004,2736.2,2736.1,0.73862055]
[1740042915897,3.65513,2735.9,2735.6,8.213]
[1740042916199,0.0075,2735.8,2735.7,0.259]
[1740042916912,0.0075,2735.8,2735.6,8.213]
[1740042916913,4.45597,2735.7,2735.6,8.213]
[1740042917118,9.69377834,2735.7,2735.6,8.213]
[1740042917722,9.69377834,2735.7,2735.6,8.95345608]
[1740042917905,11.02868017,2735.7,2735.6,8.95345608]
[1740042918278,7.37331017,2735.7,2735.6,8.95345608]
[1740042918482,6.03840834,2735.7,2735.6,8.95345608]
[1740042920363,9.69377834,2735.7,2735.6,8.95345608]
[1740042920476,6.03840834,2735.7,2735.6,8.95345608]
[1740042920678,9.69377834,2735.7,2735.6,8.95345608]
[1740042922824,6.03840834,2735.7,2735.6,8.95345608]
[1740042923617,9.69377834,2735.7,2735.6,8.95345608]
[1740042923802,11.02868217,2735.7,2735.6,8.95345608]
[1740042928145,11.02868217,2735.7,2735.6,0.74045608]
[1740042928330,11.02868217,2735.7,2734.7,3.65661]
[1740042928331,0.7783,2735.6,2734.9,0.259]
[1740042928538,0.0075,2735.5,2735.0,0.7635]
[1740042928733,0.0075,2735.5,2735.4,0.73964518]
[1740042929046,5.24530834,2735.5,2735.4,0.73964518]
[1740042936567,8.90093834,2735.5,2735.4,0.73964518]
[1740042936863,10.61060617,2735.5,2735.4,0.73964518]
[1740042937030,0.0075,2735.2,2735.0,0.259]
[1740042937231,0.0075,2735.2,2735.1,0.7201066]
[1740042937564,0.0075,2735.4,2735.1,0.7201066]
[1740042937767,3.66333,2735.4,2735.1,0.7201066]
[1740042937942,0.0075,2735.2,2735.1,0.7201066]
[1740042938572,3.66353,2735.2,2735.1,0.7201066]
[1740042939273,0.0075,2735.2,2735.1,0.7201066]
[1740042940470,4.42253,2735.2,2735.1,0.7201066]
[1740042940944,0.7665,2735.2,2735.1,0.7201066]
[1740042942268,5.39590083,2735.2,2735.1,0.7201066]
[1740042942918,3.65654,2734.9,2734.7,8.40587339]
[1740042943033,6.04690834,2734.8,2734.7,8.215]
[1740042944349,5.23780834,2734.8,2734.7,8.215]
[1740042945769,5.23780834,2734.8,2734.7,9.55099707]
[1740042946178,5.23780834,2734.8,2734.7,8.215]
[1740042946881,5.23780834,2734.8,2734.7,8.94513652]
[1740042947374,5.23780834,2734.8,2734.7,11.75297895]
[1740042947678,0.0075,2735.1,2734.9,3.65639]
[1740042947847,0.0075,2735.1,2735.0,2.39869707]
[1740042948170,0.0075,2735.1,2735.0,1.0627]
[1740042948535,0.004,2735.4,2735.0,3.00420278]
[1740042948734,0.004,2735.4,2735.0,6.66041278]
[1740042948979,0.0115,2735.4,2735.2,1.33599707]
[1740042949985,0.0115,2735.4,2735.3,4.4126]
[1740042949986,0.004,2735.4,2735.3,4.4126]
[1740042950272,0.004,2735.4,2735.3,0.7567]
[1740042950709,0.0115,2735.4,2735.0,1.0157]
[1740042950870,3.66727,2735.4,2735.0,2.148564]
[1740042951067,0.0075,2735.2,2735.0,1.0157]
[1740042951588,0.0075,2735.2,2735.0,0.259]
[1740042951978,0.0075,2735.2,2735.1,0.259]
[1740042953693,8.90133834,2735.2,2735.1,0.259]
[1740042955285,5.24530834,2735.2,2735.1,0.259]
[1740042957513,8.90133834,2735.2,2735.1,0.259]
[1740042958404,5.24530834,2735.2,2735.1,0.259]
[1740042958732,8.90133834,2735.2,2735.1,0.259]
[1740042959315,3.66371,2735.1,2735.0,0.259]
[1740042960339,0.0075,2735.1,2735.0,0.259]
[1740042961697,3.66367,2735.1,2734.7,0.92100635]
[1740042962037,0.0075,2735.0,2734.7,0.92100635]
[1740042962245,0.0075,2735.0,2734.8,0.259]
[1740042964944,5.23780834,2735.2,2734.8,3.91551]
[1740042965106,5.23780834,2735.2,2734.9,0.8049]
[1740042965303,5.23780834,2735.2,2734.9,4.46125]
[1740042967065,5.23780834,2735.2,2735.1,3.65617]
[1740042967241,5.23780834,2735.2,2735.1,4.42067]
[1740042971471,0.004,2735.4,2735.1,4.42067]
[1740042971672,0.004,2735.4,2735.2,3.65599]
[1740042975763,0.004,2735.4,2735.1,1.572196]
[1740042976073,0.004,2735.4,2735.1,5.228316]
[1740042977484,0.004,2735.4,2735.1,0.7645]
[1740042977985,0.004,2735.4,2735.3,0.74881932]
[1740042980075,3.65977,2735.4,2735.3,0.74881932]
[1740042980378,0.004,2735.4,2735.3,0.74881932]
[1740042983863,0.004,2735.4,2735.3,1.00781932]
[1740042984264,0.820299,2735.4,2735.3,1.00781932]
[1740042985367,5.244469,2735.4,2735.3,1.00781932]
[1740042987706,1.588699,2735.4,2735.3,1.00781932]
[1740042988505,1.588699,2735.4,2735.3,0.74881932]
[1740042989106,5.244469,2735.4,2735.3,0.74881932]
[1740042989316,10.48227734,2735.4,2735.3,0.74881932]
[1740042990010,10.48227734,2735.4,2735.1,0.259]
[1740042990214,3.66353,2735.2,2735.1,0.259]
[1740042990540,0.0075,2734.8,2734.7,8.216]
[1740042990670,5.24530834,2734.8,2734.7,8.475]
[1740042991370,5.24530834,2734.8,2734.7,8.216]
[1740042992131,5.24530834,2734.8,2734.7,8.96631119]
[1740042993422,5.24530834,2734.8,2734.7,0.75031119]
[1740042995027,9.87165017,2734.8,2734.7,0.75031119]
[1740042996430,6.21508017,2734.8,2734.7,0.75031119]
[1740042996931,5.24530834,2734.8,2734.7,0.75031119]
[1740042998037,8.90187834,2734.8,2734.7,0.75031119]
[1740043001442,5.24530834,2734.8,2734.7,0.75031119]
[1740043005552,8.90187834,2734.8,2734.7,0.75031119]
[1740043007117,9.65407834,2734.8,2734.7,0.75031119]
[1740043007318,10.98513117,2734.8,2734.7,0.75031119]
[1740043012060,10.98513117,2734.8,2734.2,5.46197147]
[1740043012264,0.0075,2734.5,2734.2,5.72097147]
[1740043012467,3.66457,2734.5,2734.2,2.70436222]
[1740043012632,8.90237834,2734.5,2734.4,0.72102356]
[1740043013457,5.24530834,2734.5,2734.4,0.72102356]
[1740043014265,8.90227834,2734.5,2734.4,0.72102356]
[1740043014428,5.24530834,2734.5,2734.4,0.72102356]
[1740043015368,9.58452798,2734.5,2734.4,0.72102356]
[1740043016664,5.92755798,2734.5,2734.4,0.72102356]
[1740043016865,8.90227834,2734.5,2734.4,0.72102356]
[1740043018377,9.68027834,2734.5,2734.4,0.72102356]
[1740043021279,0.0075,2734.1,2733.9,0.7526]
[1740043021476,5.24530834,2734.1,2733.9,0.7526]
[1740043023777,5.24530834,2734.1,2734.0,0.72463714]
[1740043024182,5.24530834,2734.1,2734.0,2.06198566]
[1740043029084,8.90281834,2734.1,2734.0,0.72463714]
[1740043029290,5.24530834,2734.1,2734.0,0.72463714]
[1740043030290,8.90281834,2734.1,2734.0,0.72463714]
[1740043030489,5.24530834,2734.1,2734.0,0.72463714]
[1740043033297,5.24530834,2734.1,2734.0,5.71962566]
[1740043033589,5.24530834,2734.1,2734.0,2.06198566]
[1740043033968,5.24530834,2734.1,2734.0,0.72463714]
[1740043039979,8.90281834,2734.1,2734.0,0.72463714]
[1740043040175,10.59120017,2734.1,2734.0,0.72463714]
[1740043044809,3.65809,2733.7,2733.5,0.259]
[1740043044992,0.0075,2733.6,2733.5,0.259]
[1740043045372,3.66581,2733.5,2733.4,0.77006623]